lending/lending_fUSD_20251020
["ID","MTS","AMOUNT","RATE_DAILY","PERIOD"]
[391921034,1760991137708,500.0,0.00034358,30]
[391921035,1760991137746,250.0,0.00034358,30]
[391921036,1760991138010,500.0,0.00034358,30]
[391921037,1760991138165,500.0,0.00034358,30]
[391921038,1760991138197,250.0,0.00034358,30]
[391921039,1760991138267,500.0,0.00034358,30]
[391921040,1760991138842,250.0,0.00034358,30]
[391921041,1760991138972,500.0,0.00034358,30]
[391921042,1760991139225,500.0,0.00034358,30]
[391921043,1760991139523,250.0,0.00034358,30]
[391921044,1760991139630,500.0,0.00034358,30]
[391921045,1760991139924,500.0,0.00034358,30]
[391921046,1760991140260,500.0,0.00034358,30]
[391921047,1760991140550,500.0,0.00034358,30]
[391921048,1760991140675,250.0,0.00034358,30]
[391921049,1760991140867,500.0,0.00034358,30]
[391921050,1760991141180,500.0,0.00034358,30]
[391921051,1760991141331,250.0,0.00034358,30]
[391921052,1760991141547,500.0,0.00034358,30]
[391921053,1760991141677,151.0,0.00034358,30]
[391921054,1760991141791,500.0,0.00034358,30]
[391921055,1760991141955,250.0,0.00034358,30]
[391921056,1760991142233,500.0,0.00034358,30]
[391921057,1760991142367,151.0,0.00034358,30]
[391921058,1760991142417,500.0,0.00034358,30]
[391921059,1760991142603,250.0,0.00034358,30]
[391921060,1760991142859,500.0,0.00034358,30]
[391921061,1760991143029,500.0,0.00034358,30]
[391921062,1760991143062,151.0,0.00034358,30]
[391921063,1760991143270,250.0,0.00034358,30]
[391921064,1760991143505,500.0,0.00034358,30]
[391921065,1760991143861,151.0,0.00034358,30]
[391921066,1760991144171,500.0,0.00034358,30]
[391921067,1760991144938,500.0,0.00034358,30]
[391921068,1760991145483,500.0,0.00034358,30]
[391921069,1760991214553,-295.01483769,0.00014024,2]
[391921072,1760991242168,301.31,0.00013699,2]
[391921076,1760991425258,6888.0,0.00034358,30]
[391921077,1760991425342,500.0,0.00034358,30]
[391921078,1760991425911,7142.856,0.00034358,30]
[391921079,1760991425983,500.0,0.00034358,30]
[391921080,1760991426714,7407.141672,0.00034358,30]
[391921081,1760991427348,7681.20591386,0.00034358,30]
[391921082,1760991428002,7965.41053268,0.00034358,30]
[391921083,1760991430325,371.48857578,0.00034358,30]
[391921088,1760991859569,-4.98516231,0.00014024,2]
[391921089,1760991859591,-195.01483769,0.00014026,2]
[391921090,1760991863155,-2304.98516231,0.00014026,2]
[391921091,1760991863176,-300.0,0.00014026,2]
[391921092,1760991863199,-300.0,0.00014027,2]
[391921093,1760991863221,-250.0,0.0001403,2]
[391921095,1760991871808,-202.88841952,0.00014035,2]
[391921096,1760991871830,-300.0,0.0001404,2]
[391921097,1760991887872,-2460.54644225,0.00014045,2]
[391921098,1760991894991,-500.0,0.00013966,2]
[391921100,1760991901190,-175.42410535,0.00014096,2]
[391921101,1760991907278,-200.0,0.00014511,2]
[391921102,1760991912742,-300.0,0.00014598,2]
[391921103,1760991919618,-5099.82664818,0.00014684,2]
[391921104,1760991931081,-229.60610813,0.00014599,2]
[391921105,1760991931102,-200.0,0.00014611,2]
[391921106,1760991931126,-300.0,0.00014699,2]
[391921107,1760991931149,-300.0,0.00014699,2]
[391921108,1760991931171,-1200.0,0.00014699,2]
[391921109,1760991931192,-5096.59623321,0.000147,2]
[391921110,1760991937586,-429.60610813,0.000147,2]
[391921111,1760991955576,3888.58071581,0.000139,2]
[391921112,1760991955601,1641.26544047,0.000139,2]
[391921124,1760992232203,-150.0,0.00014209,2]
[391921125,1760992232214,-300.0,0.00014299,2]
[391921126,1760992232224,-51.18191168,0.0001439,2]
[391921127,1760992232258,-119.61027513,0.0001439,2]
[391921128,1760992232267,-1581.88793397,0.00014641,2]
[391921129,1760992232277,-2750.20148,0.0001485,2]
[391921130,1760992232287,-1500.0,0.00014874,2]
[391921131,1760992232296,-1200.0,0.00014898,2]
[391921132,1760992232307,-1007.60293934,0.00014899,2]
[391921133,1760992232321,-1200.0,0.00014899,2]
[391921134,1760992232330,-300.0,0.00014899,2]
[391921135,1760992232339,-300.0,0.00014899,2]
[391921136,1760992232348,-150.0,0.00014899,2]
[391921137,1760992232357,-500.0,0.000149,2]
[391921138,1760992232367,-287.70150778,0.000149,2]
[391921139,1760992232376,-59748.96821253,0.000149,2]
[391921140,1760992232386,-163.70797485,0.000149,2]
[391921141,1760992232396,-500.0,0.00014973,2]
[391921142,1760992232406,-500.0,0.00014973,2]
[391921143,1760992232415,-168.88822331,0.00014973,2]
[391921144,1760992232424,-500.0,0.00014973,2]
[391921145,1760992232433,-216.66801576,0.0001499,2]
[391921146,1760992232442,-216.66801576,0.0001499,2]
[391921147,1760992232452,-216.66801576,0.0001499,2]
[391921148,1760992232462,-151.0,0.00014991,2]
[391921149,1760992232472,-226.02260155,0.00014991,2]
[391921150,1760992232481,-500.0,0.00014998,2]
[391921151,1760992232490,-500.0,0.00014998,2]
[391921153,1760992232499,-500.0,0.00014998,2]
[391921155,1760992232508,-300.0,0.00014998,2]
[391921157,1760992232518,-500.0,0.00014998,2]
[391921159,1760992232527,-500.0,0.00014998,2]
[391921161,1760992232536,-597.73179775,0.00014998,2]
[391921163,1760992232546,-177.5257553,0.00014998,2]
[391921164,1760992232555,-209.4,0.00014998,2]
[391921166,1760992232565,-461.20090331,0.00014998,2]
[391921167,1760992232574,-500.0,0.00014998,2]
[391921168,1760992232584,-500.0,0.00014998,2]
[391921169,1760992232594,-388.65655417,0.00014998,2]
[391921170,1760992232603,-181.71003806,0.00014999,5]
[391921171,1760992232612,-500.0,0.00014999,2]
[391921172,1760992232621,-508.34817712,0.00014999,2]
[391921173,1760992232630,-44293.4909841,0.00014999,2]
[391921174,1760992232650,-641.6254655,0.00014999,2]
[391921175,1760992232665,-512.41277663,0.00014999,2]
[391921176,1760992232677,-4707.6,0.00014999,2]
[391921177,1760992232688,-487.58722337,0.00014999,2]
[391921178,1760992232699,-3900.4,0.00014999,2]
[391921193,1760992238183,-14046.39738317,0.00014999,2]
[391921194,1760992238341,-3945.85367243,0.00014999,2]
[391921195,1760992238350,-500.0,0.00014999,2]
[391921196,1760992238359,-500.0,0.00014999,2]
[391921197,1760992238369,-500.0,0.00014999,2]
[391921198,1760992238378,-500.0,0.00014999,2]
[391921199,1760992238388,-500.0,0.00014999,2]
[391921200,1760992238397,-500.0,0.00014999,2]
[391921201,1760992238407,-500.0,0.00014999,2]
[391921202,1760992238417,-500.0,0.00014999,2]
[391921203,1760992238426,-500.0,0.00014999,2]
[391921204,1760992238435,-500.0,0.00014999,2]
[391921205,1760992238445,-325.5862381,0.00014999,2]
[391921206,1760992238454,-500.0,0.00014999,2]
[391921207,1760992238464,-500.0,0.00014999,2]
[391921208,1760992238473,-500.0,0.00014999,2]
[391921209,1760992238483,-500.0,0.00014999,2]
[391921210,1760992238492,-500.0,0.00014999,2]
[391921211,1760992238501,-500.0,0.00014999,2]
[391921212,1760992238511,-500.0,0.00014999,2]
[391921213,1760992238520,-500.0,0.00014999,2]
[391921214,1760992238530,-500.0,0.00014999,2]
[391921216,1760992238539,-500.0,0.00014999,2]
[391921217,1760992238548,-500.0,0.00014999,2]
[391921218,1760992238557,-504.09132802,0.00014999,2]
[391921219,1760992238566,-150.0,0.00014999,2]
[391921220,1760992238576,-52.78696846,0.00014999,2]
[391921221,1760992238587,-97.21303154,0.00014999,2]
[391921222,1760992238596,-300.79534709,0.00014999,2]
[391921225,1760992240222,-199.20465291,0.00014999,2]
[391921226,1760992240232,-150.0,0.00014999,2]
[391921227,1760992240242,-150.0,0.00014999,2]
[391921228,1760992240252,-500.0,0.00014999,2]
[391921229,1760992240261,-500.0,0.00014999,2]
[391921230,1760992240271,-500.0,0.00014999,2]
[391921231,1760992240280,-37.59633374,0.00014999,2]
[391921232,1760992240291,-462.40366626,0.00014999,2]
[391921233,1760992240300,-500.0,0.00014999,2]
[391921234,1760992240310,-500.0,0.00014999,2]
[391921235,1760992240319,-207.17453514,0.00014999,2]
[391921236,1760992240339,-216.32546486,0.00014999,2]
[391921237,1760992240348,-500.0,0.00014999,2]
[391921238,1760992240358,-500.0,0.00014999,2]
[391921239,1760992240367,-500.0,0.00014999,2]
[391921240,1760992240377,-500.0,0.00014999,2]
[391921241,1760992240386,-500.0,0.00014999,2]
[391921242,1760992240396,-525.92,0.00014999,2]
[391921243,1760992240406,-150.0,0.00014999,2]
[391921244,1760992240416,-150.0,0.00014999,2]
[391921245,1760992240425,-500.0,0.00014999,2]
[391921246,1760992240434,-251.64880541,0.00014999,2]
[391921247,1760992240444,-150.0,0.00014999,2]
[391921248,1760992240452,-500.0,0.00014999,2]
[391921249,1760992240462,-500.0,0.00014999,2]
[391921250,1760992240471,-500.0,0.00014999,2]
[391921251,1760992240481,-501.41929759,0.00014999,2]
[391921252,1760992240490,-150.0,0.00014999,2]
[391921253,1760992240500,-500.0,0.00014999,2]
[391921254,1760992240509,-602.89831103,0.00014999,2]
[391921255,1760992240519,-150.0,0.00014999,2]
[391921256,1760992240528,-150.0,0.00014999,2]
[391921257,1760992240537,-150.0,0.00014999,2]
[391921258,1760992240546,-150.0,0.00014999,2]
[391921260,1760992240688,-150.0,0.00014999,2]
[391921261,1760992240711,-150.0,0.00014999,2]
[391921262,1760992240720,-150.0,0.00014999,2]
[391921263,1760992240732,-150.0,0.00014999,2]
[391921264,1760992240746,-500.0,0.00014999,2]
[391921265,1760992240755,-150.0,0.00014999,2]
[391921266,1760992240764,-150.0,0.00014999,2]
[391921267,1760992240774,-500.0,0.00014999,2]
[391921268,1760992240783,-500.0,0.00014999,2]
[391921269,1760992240793,-500.0,0.00014999,2]
[391921270,1760992240802,-500.0,0.00014999,2]
[391921271,1760992240811,-500.0,0.00014999,2]
[391921272,1760992240820,-500.0,0.00014999,2]
[391921273,1760992240829,-500.0,0.00014999,2]
[391921274,1760992240838,-500.0,0.00014999,2]
[391921275,1760992240847,-500.0,0.00014999,2]
[391921276,1760992240857,-500.0,0.00014999,2]
[391921277,1760992240867,-500.0,0.00014999,2]
[391921278,1760992240876,-500.0,0.00014999,2]
[391921279,1760992240885,-257.95611022,0.00014999,2]
[391921280,1760992240894,-500.0,0.00014999,2]
[391921281,1760992240905,-324.85149301,0.00014999,2]
[391921282,1760992240915,-150.0,0.00014999,2]
[391921283,1760992240925,-150.0,0.00014999,2]
[391921284,1760992240934,-150.0,0.00014999,2]
[391921285,1760992240944,-200.78287206,0.00014999,2]
[391921286,1760992240952,-150.0,0.00014999,2]
[391921287,1760992240962,-2144962.10754794,0.00015,2]
[391921288,1760992240973,-1863041.96678805,0.00015,2]
[391921289,1760992240983,-14617.3177204,0.00015,2]
[391921290,1760992240992,-81231.3711673,0.00015,2]
[391921291,1760992241002,-4386.4561096,0.00015,2]
[391921292,1760992241012,-151.0,0.00015,2]
[391921293,1760992241025,-592.53439609,0.00015,2]
[391921294,1760992241034,-2434140.14846704,0.00015,2]
[391921295,1760992241047,-16831.8008488,0.00015,2]
[391921296,1760992241217,-255.800277,0.00014998,2]
[391921297,1760992241227,-921269.47216053,0.00015,2]
[391921298,1760992241236,-2811.29,0.00015,10]
[391921299,1760992241246,-1145.39422586,0.00015,10]
[391921300,1760992241255,-584313.31599578,0.00015,2]
[391921317,1760992243354,-150.0,0.00014999,2]
[391921318,1760992243364,-150.0,0.00014999,2]
[391921319,1760992243373,-128.5679594,0.00015,2]
[391921320,1760992243384,-1334.90580008,0.00015,2]
[391921321,1760992243516,-564.30642549,0.00015,2]
[391921322,1760992243623,-41441.80082737,0.00015,2]
[391921339,1760992246443,-154.9619546,0.000149,2]
[391921340,1760992246453,-258.24662432,0.00014999,2]
[391921341,1760992246463,-500.0,0.00014999,2]
[391921342,1760992246473,-463.26662991,0.00014999,2]
[391921343,1760992246482,-1835.51243182,0.00015,2]
[391921344,1760992246493,-1112.9118,0.00015,2]
[391921345,1760992246605,-736.12436871,0.00015,2]
[391921346,1760992246662,-1859.20023282,0.00015,2]
[391921347,1760992246717,-4561.06991135,0.00015,2]
[391921352,1760992308639,1091.0,0.00034393,30]
[391921353,1760992311072,1091.0,0.00034393,30]
[391921354,1760992313536,1091.0,0.00034393,30]
[391921355,1760992315977,1091.0,0.00034393,30]
[391921356,1760992318440,1091.0,0.00034393,30]
[391921357,1760992325176,300.0,0.00034393,30]
[391921358,1760992325830,300.0,0.00034393,30]
[391921359,1760992326016,600.0,0.00034393,30]
[391921360,1760992328049,500.0,0.00034393,30]
[391921361,1760992328582,153.72206055,0.00034393,30]
[391921362,1760992328683,500.0,0.00034393,30]
[391921363,1760992329045,500.0,0.00034393,30]
[391921364,1760992329326,520.0,0.00034393,30]
[391921365,1760992329486,500.0,0.00034393,30]
[391921366,1760992329557,152.97120212,0.00034393,30]
[391921367,1760992329980,500.0,0.00034393,30]
[391921368,1760992330602,500.0,0.00034393,30]
[391921369,1760992331251,500.0,0.00034393,30]
[391921370,1760992331360,153.99731151,0.00034393,30]
[391921371,1760992332394,500.0,0.00034393,30]
[391921372,1760992332838,500.0,0.00034393,30]
[391921373,1760992333027,500.0,0.00034393,30]
[391921374,1760992333756,500.0,0.00034393,30]
[391921375,1760992333932,500.0,0.00034393,30]
[391921376,1760992334448,500.0,0.00034393,30]
[391921377,1760992334608,500.0,0.00034393,30]
[391921378,1760992335004,188.6424668,0.00034393,30]
[391921379,1760992335037,500.0,0.00034393,30]
[391921380,1760992335158,6888.0,0.00034393,30]
[391921381,1760992335275,500.0,0.00034393,30]
[391921382,1760992335659,500.0,0.00034393,30]
[391921383,1760992335765,7142.856,0.00034393,30]
[391921384,1760992335953,500.0,0.00034393,30]
[391921385,1760992336296,500.0,0.00034393,30]
[391921386,1760992336402,7407.141672,0.00034393,30]
[391921387,1760992336595,500.0,0.00034393,30]
[391921388,1760992337043,7681.20591386,0.00034393,30]
[391921390,1760992625430,285.90737541,0.00034473,30]
[391921391,1760992627892,193.3919763,0.00034473,30]
[391921392,1760992654723,1132.09,7.847e-05,2]
[391921393,1760992655166,1132.09,8.26e-05,2]
[391921394,1760992655244,1132.09,8.673e-05,2]
[391921395,1760992655387,1132.09,9.086e-05,2]
[391921396,1760992655615,1132.09,9.499e-05,2]
[391921397,1760992655824,1132.09,9.912e-05,2]
[391921398,1760992656039,1132.09,0.00010325,2]
[391921399,1760992656243,1132.09,0.00010738,2]
[391921400,1760992656459,943.28,0.00011151,2]
[391921401,1760992656488,188.81,0.00011151,2]
[391921402,1760992656739,1132.09,0.00011564,2]
[391921403,1760992656931,1132.09,0.00011977,2]
[391921404,1760992657351,1132.09,0.0001239,2]
[391921405,1760992657561,1132.09,0.00012803,2]
[391921406,1760992657798,1132.09,0.00013216,2]
[391921407,1760992658222,357.28554953,0.00013629,2]
[391921408,1760992658943,-304.6680068,0.00013629,2]
[391921409,1760992660966,-287.48914449,0.00013629,2]
[391921410,1760992689592,-182.64729918,0.00013629,2]
[391921411,1760992689617,-2601.31422881,0.00013732,2]
[391921412,1760992689642,-423.98620919,0.00013835,2]
[391921413,1760992689667,-1132.09,0.00014041,2]
[391921414,1760992689691,-1132.09,0.00014454,2]
[391921415,1760992689714,-2475.17606,0.0001485,2]
[391921416,1760992689741,-1132.09,0.00014867,2]
[391921417,1760992689763,-920.60620282,0.000149,2]
[391921418,1760992730316,50000.0,0.00034365,35]
[391921419,1760992740155,50000.0,0.00034365,36]
[391921420,1760992751582,50000.0,0.00034365,37]
[391921421,1760992778749,-1167.29929718,0.000149,2]
[391921422,1760992778781,-1004.0,0.00014989,2]
[391921423,1760992778801,-1167.29929718,0.0001499,2]
[391921424,1760992778823,-32.70070282,0.0001499,2]
[391921425,1760992778833,-300.0,0.0001499,2]
[391921426,1760992778842,-414.66523857,0.00014991,2]
[391921427,1760992778852,-151.0,0.00014991,2]
[391921428,1760992778861,-105.63405861,0.00014991,2]
[391921429,1760992778877,-45.36594139,0.00014991,2]
[391921430,1760992778887,-151.0,0.00014991,2]
[391921431,1760992778897,-151.0,0.00014991,2]
[391921432,1760992778907,-110.03546425,0.00014991,2]
[391921433,1760992812399,-300.0,0.0001499,2]
[391921434,1760992897762,-173.55298039,0.00014891,2]
[391921435,1760992897786,-1200.0,0.0001499,2]
[391921436,1760992897809,-300.0,0.0001499,2]
[391921437,1760992897833,-40.96453575,0.00014991,2]
[391921438,1760992897858,-151.0,0.00014991,2]
[391921439,1760992897882,-151.0,0.00014991,2]
[391921440,1760992897906,-151.0,0.00014991,2]
[391921441,1760992897929,-151.0,0.00014991,2]
[391921442,1760992897953,-151.0,0.00014991,2]
[391921443,1760992897976,-151.0,0.00014991,2]
[391921444,1760992897999,-151.64545188,0.00014991,2]
[391921445,1760992898021,-165.2298658,0.00014991,2]
[391921446,1760992898043,-165.2298658,0.00014991,2]
[391921447,1760992898066,-300.0,0.00014991,2]
[391921448,1760992898089,-2500.0,0.00014991,2]
[391921449,1760992898113,-150.0,0.00014998,2]
[391921450,1760992898140,-150.0,0.00014999,2]
[391921451,1760992898166,-150.0,0.00014999,2]
[391921452,1760992898190,-174.41632804,0.00014999,2]
[391921453,1760992898213,-150.0,0.00014999,2]
[391921454,1760992898237,-150.0,0.00014999,2]
[391921455,1760992898259,-150.0,0.00014999,2]
[391921456,1760992898281,-150.0,0.00014999,2]
[391921457,1760992898308,-150.0,0.00014999,2]
[391921458,1760992898336,-500.0,0.00014999,2]
[391921459,1760992898362,-500.0,0.00014999,2]
[391921460,1760992898387,-500.0,0.00014999,2]
[391921461,1760992898413,-500.0,0.00014999,2]
[391921462,1760992898438,-500.0,0.00014999,2]
[391921463,1760992898462,-500.0,0.00014999,2]
[391921464,1760992898487,-365.88684224,0.00014999,2]
[391921465,1760992898511,-500.0,0.00014999,2]
[391921466,1760992898537,-500.0,0.00014999,2]
[391921467,1760992898562,-500.0,0.00014999,2]
[391921468,1760992898586,-500.0,0.00014999,2]
[391921469,1760992898611,-500.0,0.00014999,2]
[391921470,1760992898635,-500.0,0.00014999,2]
[391921471,1760992898659,-500.0,0.00014999,2]
[391921472,1760992898683,-500.0,0.00014999,2]
[391921473,1760992898706,-5357.0741301,0.00015,2]
[391921474,1760992920259,-5000.0,0.000149,2]
[391921475,1760992953180,-152.19368868,0.00014853,2]
[391921476,1760992953204,-334.64471987,0.000149,2]
[391921477,1760992953226,-548.33216919,0.00014973,2]
[391921478,1760992953247,-251.85710336,0.00014973,2]
[391921479,1760992953269,-150.0,0.00014999,2]
[391921480,1760992953288,-62.9723189,0.00015,2]
[391921481,1760992964189,-20000.0,0.00015,2]
[391921482,1760992985294,-10000.0,0.00014978,2]
[391921483,1760993001084,-500.0,0.00014858,2]
[391921484,1760993001108,-19109.1061707,0.00014978,2]
[391921485,1760993001132,-390.8938293,0.00015,2]
[391921487,1760993123216,-200.0,0.00014858,2]
[391921488,1760993123242,-500.0,0.00014973,2]
[391921489,1760993123265,-500.0,0.00014973,2]
[391921490,1760993123289,-504.58952718,0.00014973,2]
[391921491,1760993123495,-300.0,0.00014999,2]
[391921492,1760993123518,-1200.0,0.00014999,2]
[391921493,1760993123543,-150.0,0.00014999,2]
[391921494,1760993123567,-6645.41047282,0.00015,2]
[391921495,1760993377142,171.71,0.00012552,2]
[391921498,1760993431409,-667.26980381,0.000149,2]
[391921499,1760993431464,-3606.16126671,0.000149,2]
[391921500,1760993431474,-698.0,0.00014999,2]
[391921501,1760993431483,-150.0,0.00014999,2]
[391921502,1760993431492,-300.0,0.00014999,2]
[391921503,1760993431502,-300.0,0.00014999,2]
[391921504,1760993431511,-1200.0,0.00014999,2]
[391921505,1760993431520,-433.74680298,0.00015,2]
[391921506,1760993431530,-69398.96188067,0.00015,2]
[391921507,1760993431539,-2737.780363,0.00015,2]
[391921508,1760993431548,-151.0,0.00015,2]
[391921509,1760993431558,-1329.7726135,0.00015,2]
[391921510,1760993431567,-12961.0584271,0.00015,2]
[391921511,1760993431576,-18356.7160602,0.00015,2]
[391921512,1760993431586,-3061.2369435,0.00015,2]
[391921513,1760993431595,-151.0,0.00015,2]
[391921514,1760993431604,-2062.64671,0.00015,2]
[391921515,1760993431613,-160.0,0.00015,2]
[391921516,1760993431622,-166.66,0.00015016,2]
[391921517,1760993431631,-150.0,0.00015054,2]
[391921518,1760993431640,-184.1439886,0.00015109,2]
[391921519,1760993431650,-150.0,0.00015164,2]
[391921520,1760993431660,-150.0,0.00015164,2]
[391921521,1760993431669,-150.0,0.00015164,2]
[391921522,1760993431679,-150.0,0.00015164,2]
[391921524,1760993431687,-150.0,0.00015164,2]
[391921526,1760993431696,-150.0,0.00015164,2]
[391921528,1760993431705,-201.42660385,0.00015164,2]
[391921530,1760993431715,-150.0,0.00015164,2]
[391921531,1760993431728,-150.0,0.00015164,2]
[391921533,1760993431738,-150.0,0.00015164,2]
[391921535,1760993431747,-150.0,0.00015219,2]
[391921537,1760993431756,-200.0,0.00015219,2]
[391921539,1760993431767,-150.0,0.00015219,2]
[391921541,1760993431776,-201.14944807,0.00015219,2]
[391921542,1760993431785,-150.0,0.00015219,2]
[391921544,1760993431795,-200.0,0.00015219,2]
[391921545,1760993431805,-150.0,0.00015219,2]
[391921546,1760993431815,-500.0,0.00015219,2]
[391921547,1760993431824,-500.0,0.00015219,2]
[391921548,1760993431833,-202.37078866,0.00015219,2]
[391921549,1760993431842,-500.0,0.00015219,2]
[391921551,1760993431851,-150.0,0.00015219,2]
[391921553,1760993431860,-150.0,0.00015219,2]
[391921555,1760993431870,-150.0,0.00015219,2]
[391921557,1760993431879,-251.88543427,0.00015219,2]
[391921559,1760993431888,-200.0,0.00015219,2]
[391921561,1760993431896,-150.0,0.00015219,2]
[391921563,1760993431905,-150.0,0.00015219,2]
[391921565,1760993431915,-150.0,0.00015219,2]
[391921566,1760993431923,-150.0,0.00015219,2]
[391921567,1760993431934,-150.0,0.00015219,2]
[391921568,1760993431943,-151.0,0.00015233,2]
[391921569,1760993431953,-151.0,0.00015235,2]
[391921570,1760993431963,-151.0,0.00015237,2]
[391921571,1760993431974,-3253.15906763,0.00015245,2]
[391921572,1760993431985,-201.79931622,0.00015274,2]
[391921573,1760993431994,-150.0,0.00015274,2]
[391921574,1760993432003,-150.0,0.00015274,2]
[391921575,1760993432012,-250.0,0.00015274,2]
[391921576,1760993432021,-500.0,0.00015274,2]
[391921577,1760993432030,-500.0,0.00015274,2]
[391921578,1760993432039,-500.0,0.00015274,2]
[391921579,1760993432048,-150.0,0.00015274,2]
[391921580,1760993432056,-150.0,0.00015274,2]
[391921581,1760993432065,-150.0,0.00015274,2]
[391921582,1760993432076,-150.0,0.00015274,2]
[391921583,1760993432085,-150.0,0.00015274,2]
[391921584,1760993432094,-1132.09,0.0001528,2]
[391921585,1760993432104,-166.66,0.00015314,2]
[391921586,1760993432113,-200.00000016,0.00015328,2]
[391921587,1760993432122,-250.0,0.00015328,2]
[391921588,1760993432131,-559.0,0.00015329,2]
[391921589,1760993432141,-500.0,0.00015329,2]
[391921590,1760993432150,-457.99369175,0.00015329,2]
[391921591,1760993432159,-150.0,0.00015329,2]
[391921592,1760993432168,-150.0,0.00015329,2]
[391921593,1760993432177,-200.0,0.00015329,2]
[391921594,1760993432187,-150.0,0.00015329,2]
[391921595,1760993432196,-500.0,0.00015383,2]
[391921596,1760993432204,-150.0,0.00015383,2]
[391921597,1760993432214,-150.0,0.00015383,2]
[391921598,1760993432223,-150.0,0.00015383,2]
[391921599,1760993432232,-500.0,0.00015438,2]
[391921600,1760993432241,-212.37533984,0.00015438,2]
[391921601,1760993432250,-150.0,0.00015438,2]
[391921602,1760993432260,-150.0,0.00015438,2]
[391921603,1760993432269,-500.0,0.00015493,2]
[391921604,1760993432279,-208.7829731,0.00015493,2]
[391921605,1760993432288,-250.0,0.00015493,2]
[391921606,1760993432297,-500.0,0.00015521,2]
[391921607,1760993432307,-500.0,0.00015548,2]
[391921608,1760993432316,-5196.66607087,0.0001559,2]
[391921609,1760993432325,-500.0,0.00015603,2]
[391921610,1760993432336,-166.66,0.00015611,2]
[391921611,1760993432346,-222.9,0.00015646,2]
[391921612,1760993432355,-500.0,0.00015653,2]
[391921613,1760993432365,-500.0,0.00015657,2]
[391921614,1760993432375,-4102.59,0.00015659,2]
[391921615,1760993432385,-1852.42,0.00015662,2]
[391921616,1760993432395,-1000.0,0.00015663,2]
[391921617,1760993432404,-8216.44,0.00015674,2]
[391921618,1760993432413,-309.37764294,0.0001569,2]
[391921619,1760993432423,-1132.09,0.00015693,2]
[391921620,1760993432432,-500.0,0.00015712,2]
[391921621,1760993432442,-256.99,0.00015721,2]
[391921622,1760993432451,-1842.64,0.00015724,2]
[391921623,1760993432461,-1664.29,0.00015726,2]
[391921624,1760993432471,-250.0,0.00015726,2]
[391921625,1760993432482,-1495.51,0.00015746,2]
[391921626,1760993432491,-532.84853654,0.00015767,2]
[391921627,1760993432500,-200.0,0.00015841,2]
[391921628,1760993432511,-696.0,0.00015852,2]
[391921629,1760993432520,-300.0,0.00015979,2]
[391921630,1760993432532,-2751.0,0.00016002,2]
[391921631,1760993432542,-255.0,0.00016124,2]
[391921632,1760993432552,-5000.00971687,0.000162,5]
[391921633,1760993432561,-220.11,0.00016204,2]
[391921634,1760993432570,-191.16924802,0.00016344,2]
[391921635,1760993432580,-300.0,0.00016344,2]
[391921636,1760993432591,-300.0,0.00016344,2]
[391921637,1760993432600,-227.0,0.00016416,2]
[391921638,1760993432610,-420.0,0.00016416,2]